[Event "AIIZIUCWT 2024"]
[Site "Rajkot"]
[Date "2024.01.23"]
[Round "1.1"]
[White "Anisha Jain"]
[Black "Ghosh Samriddhaa"]
[Result "0-1"]
[ECO "C02"]
[WhiteElo "1140"]
[BlackElo "1872"]
[Annotator "NA RC COMBH"]
[PlyCount "86"]
[EventDate "2024.01.22"]
[EventType "team-tourn"]
[EventCountry "IND"]
[SourceTitle "playchess.com"]
[Source "ChessBase"]
[SourceQuality "1"]
[TimeControl "3600+30"]

1. e4 {[%emt 0:00:07]} e6 {[%emt 0:00:15]} 2. d4 {[%emt 0:00:16]} d5 {[%emt 0:00:08]} 3. e5 {[%emt 0:00:37]} c5 {[%emt 0:00:25]} 4. c3 {[%emt 0:00:45]} Nc6 {[%emt 0:00:20]} 5. Nf3 {[%emt 0:00:23]} Qb6 {[%emt 0:00:07]} 6. Bd3 {[%emt 0:02:35]} cxd4 {[%emt 0:00:28]} 7. cxd4 {[%emt 0:01:00]} Bd7 {[%emt 0:00:13]} 8. Bc2 {[%emt 0:00:58]} Nb4 {[%emt 0:00:41]} 9. O-O {[%emt 0:03:14]} Nxc2 {[%emt 0:04:29]} 10. Qxc2 {[%emt 0:00:09]} Rc8 {[%emt 0:01:46]} 11. Nc3 {[%emt 0:02:37] C02: French: Advance Variation.} Ne7 {[%emt 0:04:57]} 12. Rd1 {[%emt 0:05:29]} Nf5 {[%emt 0:06:02]} 13. a3 {[%emt 0:03:03]} Be7 {[%emt 0:03:59]} 14. Qd2 {[%emt 0:05:49]} h6 {[%emt 0:04:41]} 15. Qd3 {[%emt 0:04:00]} a6 {[%emt 0:11:52]} 16. h3 {[%emt 0:01:23]} O-O {[%emt 0:00:39]} 17. Rb1 {[%emt 0:06:17]} Bd8 {[%emt 0:02:45]} 18. Bf4 {[%emt 0:02:54]} Be7 {[%emt 0:04:53]} 19. Qd2 {[%emt 0:08:06]} Rfe8 20. Ne2 {[%emt 0:03:21]} Qb3 {[%emt 0:07:09]} 21. Nc3 {[%emt 0:00:57]} Bxa3 {[%emt 0:05:27]} 22. bxa3 {[%emt 0:02:33]} Qxc3 {[%emt 0:00:06]} 23. Qxc3 {[%emt 0:00:43]} Rxc3 {[%emt 0:00:02]} 24. Rxb7 {[%emt 0:00:20]} Bb5 {[%emt 0:01:58]} 25. Ra1 {[%emt 0:03:28]} Be2 {[%emt 0:01:38]} 26. Nd2 {[%emt 0:02:28]} Nxd4 {[%emt 0:00:50]} 27. a4 {[%emt 0:01:12]} Rec8 {[%emt 0:00:56]} 28. Nf1 {[%emt 0:01:02]} Bd3 {[%emt 0:01:49]} 29. Ng3 {[%emt 0:00:40]} g5 {[%emt 0:01:29]} 30. Be3 {[%emt 0:00:17]} Nc2 {[%emt 0:00:53]} 31. Ra2 {[%emt 0:02:29]} Bc4 {[%emt 0:01:56]} 32. Rab2 {[%emt 0:01:22]} Nxe3 {[%emt 0:00:02]} 33. fxe3 {[%emt 0:00:13]} Rxe3 {[%emt 0:00:05]} 34. Nh5 {[%emt 0:02:19]} (34. Rf2 {only move.} Rf8 (34... Rxg3 35. Rfxf7 g4 36. Rg7+ Kh8 37. Rh7+ Kg8 38. Rbg7+ Kf8 39. Kh2 $11) 35. Nh5) 34... Rxe5 {[%emt 0:01:39]} 35. Nf6+ {[%emt 0:00:32]} Kg7 {[%emt 0:00:12]} 36. Ng4 {[%emt 0:01:05]} Re1+ {[%emt 0:00:25]} 37. Kh2 {[%emt 0:00:12]} Kg6 {[%emt 0:01:29]} 38. Rf2 {[%emt 0:00:39]} f5 $19 {[%emt 0:00:06]} 39. a5 {[%emt 0:01:31]} h5 {[%emt 0:00:26]} 40. Rfb2 {[%emt 0:01:18]} hxg4 {[%emt 0:00:20]} 41. Re7 {[%emt 0:00:40]} Bb5 {[%emt 0:00:25]} 42. hxg4 {[%emt 0:00:32]} f4 {[%emt 0:00:57]} 43. g3 {[%emt 0:00:31]} f3 {[%emt 0:00:17]} 0-1

[Event "AIIZIUCWT 2024"]
[Site "Rajkot"]
[Date "2024.01.23"]
[Round "1.2"]
[White "Chitlange Sakshi"]
[Black "Patel Hiral"]
[Result "1-0"]
[ECO "D46"]
[WhiteElo "2210"]
[BlackElo "1088"]
[Annotator "RC"]
[PlyCount "67"]
[EventDate "2024.01.22"]
[EventType "team-tourn"]
[EventCountry "IND"]
[SourceTitle "playchess.com"]
[Source "ChessBase"]
[SourceQuality "1"]
[TimeControl "3600+30"]

1. d4 {[%emt 0:00:03]} d5 {[%emt 0:00:04]} 2. c4 {[%emt 0:00:08]} c6 {[%emt 0:00:16]} 3. Nf3 {[%emt 0:00:16]} Nf6 {[%emt 0:00:13]} 4. Nc3 {[%emt 0:00:19]} e6 {[%emt 0:01:12]} 5. e3 {[%emt 0:00:21]} Nbd7 {[%emt 0:00:56]} 6. Bd3 {[%emt 0:00:08]} Bb4 {[%emt 0:01:41]} 7. O-O {[%emt 0:00:45]} O-O {[%emt 0:01:17]} 8. Bd2 {[%emt 0:00:11]} Re8 {[%emt 0:02:16]} 9. Nxd5 {[%emt 0:02:25]} Nxd5 {[%emt 0:02:49]} 10. cxd5 {[%emt 0:00:06]} Bd6 {[%emt 0:02:58]} 11. dxc6 {[%emt 0:00:24]} bxc6 {[%emt 0:00:04]} 12. Qc2 {[%emt 0:00:47]} Nf6 {[%emt 0:04:29]} 13. e4 {[%emt 0:02:25]} e5 {[%emt 0:04:03]} 14. dxe5 {[%emt 0:01:55]} Bxe5 {[%emt 0:02:14]} 15. Nxe5 {[%emt 0:00:19]} Rxe5 {[%emt 0:00:26]} 16. Bf4 {[%emt 0:00:19]} Re8 {[%emt 0:01:41]} 17. Rfd1 {[%emt 0:01:14]} Nh5 {[%emt 0:04:55]} 18. Be2 {[%emt 0:07:14]} Qh4 {[%emt 0:02:56]} 19. g3 {[%emt 0:04:05]} Qh3 {[%emt 0:35:30]} 20. Qxc6 {[%emt 0:01:48]} Bg4 {[%emt 0:00:00]} 21. Bf1 {[%emt 0:04:07]} Nxf4 {[%emt 0:00:00]} 22. Bxh3 {[%emt 0:00:06]} Nxh3+ {[%emt 0:00:00]} 23. Kg2 {[%emt 0:00:26]} Bxd1 {[%emt 0:00:00]} 24. Rxd1 {[%emt 0:00:17]} Ng5 {[%emt 0:00:00]} 25. Rd4 {[%emt 0:01:09]} Ne6 {[%emt 0:00:00]} 26. Rd2 {[%emt 0:02:10]} h6 {[%emt 0:00:00]} 27. b4 {[%emt 0:00:46]} Rac8 {[%emt 0:00:00]} 28. Qa4 {[%emt 0:00:19]} Rc7 {[%emt 0:00:00]} 29. Qxe8+ {[%emt 0:00:03]} Kh7 {[%emt 0:00:00]} 30. Rd7 {[%emt 0:00:09]} Rxd7 {[%emt 0:00:00]} 31. Qxd7 {[%emt 0:00:02]} Kg6 {[%emt 0:00:00]} 32. f4 {[%emt 0:00:07]} Kf6 {[%emt 0:00:00]} 33. Qxa7 {[%emt 0:00:07]} g6 {[%emt 0:00:00]} 34. b5 {[%emt 0:00:05]} 1-0

[Event "AIIZIUCWT 2024"]
[Site "Rajkot"]
[Date "2024.01.23"]
[Round "1.3"]
[White "Sakshi Naik Gaonkar"]
[Black "Arpita, Mukherjee"]
[Result "0-1"]
[ECO "B13"]
[WhiteElo "1393"]
[BlackElo "2186"]
[Annotator "RC"]
[PlyCount "62"]
[EventDate "2024.01.22"]
[EventType "team-tourn"]
[EventCountry "IND"]
[SourceTitle "playchess.com"]
[Source "ChessBase"]
[SourceQuality "1"]
[TimeControl "3600+30"]

1. d4 {[%emt 0:00:36]} Nf6 {[%emt 0:00:38]} 2. e3 {[%emt 0:00:33]} c5 {[%emt 0:00:48]} 3. Bd3 {[%emt 0:02:07]} d5 {[%emt 0:00:47]} 4. f4 {[%emt 0:02:19]} Nc6 {[%emt 0:01:28]} 5. c3 {[%emt 0:01:38]} cxd4 {[%emt 0:03:35]} 6. exd4 {[%emt 0:02:18]} g6 {[%emt 0:02:11]} 7. Be3 {[%emt 0:02:45]} Bg7 {[%emt 0:00:38]} 8. Nf3 {[%emt 0:01:03]} O-O {[%emt 0:00:50]} 9. Qc2 {[%emt 0:03:54]} a6 {[%emt 0:01:06]} 10. O-O {[%emt 0:05:51]} b5 {[%emt 0:00:49]} 11. Ne5 {[%emt 0:05:47]} Qb6 {[%emt 0:01:12]} 12. a3 {[%emt 0:09:51]} Nxe5 {[%emt 0:04:54]} 13. fxe5 {[%emt 0:00:49]} Ng4 {[%emt 0:00:37]} 14. Bf2 {[%emt 0:03:55]} f6 {[%emt 0:01:49]} 15. exf6 {[%emt 0:03:47]} Rxf6 {[%emt 0:00:57]} 16. h3 {[%emt 0:02:22]} Nxf2 {[%emt 0:01:37]} 17. Rxf2 {[%emt 0:00:36]} Bd7 {[%emt 0:00:51]} 18. Rxf6 {[%emt 0:06:28]} Bxf6 {[%emt 0:00:51]} 19. Kh1 {[%emt 0:01:49]} Rc8 {[%emt 0:06:25]} 20. Qe2 {[%emt 0:02:07]} a5 {[%emt 0:02:35]} 21. Nd2 {[%emt 0:01:44]} b4 {[%emt 0:00:53]} 22. axb4 {[%emt 0:01:42]} axb4 {[%emt 0:00:33]} 23. Ra6 {[%emt 0:02:24]} Qb8 {[%emt 0:03:37]} 24. Nb1 {[%emt 0:03:06]} Qf4 {[%emt 0:02:32]} 25. Qf3 {[%emt 0:02:17]} Qg5 {[%emt 0:02:58]} 26. Kh2 {[%emt 0:01:08]} Rf8 {[%emt 0:02:36]} 27. Qe2 {[%emt 0:00:42]} e5 {[%emt 0:00:57]} 28. dxe5 {[%emt 0:00:37]} Bxe5+ {[%emt 0:00:37]} 29. Kh1 {[%emt 0:00:33]} Qc1+ {[%emt 0:00:38]} 30. Qf1 {[%emt 0:00:35]} Rxf1+ {[%emt 0:00:35]} 31. Bxf1 {[%emt 0:00:32]} Qxf1# {[%emt 0:00:38]} 0-1

[Event "AIIZIUCWT 2024"]
[Site "Rajkot"]
[Date "2024.01.23"]
[Round "1.4"]
[White "Diya Chowdhury"]
[Black "Aakanksha Hagawane"]
[Result "0-1"]
[ECO "C77"]
[WhiteElo "1881"]
[BlackElo "2149"]
[Annotator "RC"]
[PlyCount "82"]
[EventDate "2024.01.22"]
[EventType "team-tourn"]
[EventCountry "IND"]
[SourceTitle "playchess.com"]
[Source "ChessBase"]
[SourceQuality "1"]
[TimeControl "3600+30"]

1. e4 {[%emt 0:00:09]} e5 {[%emt 0:00:35]} 2. Nf3 {[%emt 0:00:20]} Nc6 {[%emt 0:00:24]} 3. Bb5 {[%emt 0:00:16]} a6 {[%emt 0:00:13]} 4. Ba4 {[%emt 0:00:08]} Nf6 {[%emt 0:00:29]} 5. Qe2 {[%emt 0:00:52]} b5 {[%emt 0:01:54]} 6. Bb3 {[%emt 0:00:07]} Bc5 {[%emt 0:03:28]} 7. c3 {[%emt 0:00:54]} O-O {[%emt 0:00:44]} 8. d3 {[%emt 0:00:33]} h6 {[%emt 0:03:12]} 9. Be3 {[%emt 0:01:34]} Bxe3 {[%emt 0:04:17]} 10. fxe3 {[%emt 0:00:15]} d5 {[%emt 0:01:59]} 11. exd5 {[%emt 0:01:58]} Nxd5 {[%emt 0:02:35]} 12. O-O {[%emt 0:04:20]} Bg4 {[%emt 0:05:13]} 13. Nbd2 {[%emt 0:04:06]} Kh8 {[%emt 0:01:49]} 14. h3 {[%emt 0:02:02]} Bh5 {[%emt 0:00:22]} 15. Ne4 {[%emt 0:06:23]} Re8 {[%emt 0:13:14]} 16. Ng3 {[%emt 0:10:33]} Bg6 {[%emt 0:02:05]} 17. Nh4 {[%emt 0:06:39]} Na5 {[%emt 0:08:40]} 18. Nxg6+ {[%emt 0:04:34]} fxg6 {[%emt 0:00:08]} 19. Bc2 {[%emt 0:00:55]} Qg5 {[%emt 0:01:33]} 20. Rf3 {[%emt 0:04:35]} Nf6 {[%emt 0:00:30]} 21. Qf2 {[%emt 0:00:30]} Rad8 22. a4 e4 {[%emt 0:09:00]} 23. dxe4 {[%emt 0:06:21]} Nc4 {[%emt 0:00:11]} 24. Nf1 {[%emt 0:00:58]} Nxb2 {[%emt 0:02:52]} 25. axb5 {[%emt 0:02:14]} axb5 {[%emt 0:00:06]} 26. e5 {[%emt 0:02:32]} Rxe5 {[%emt 0:00:35]} 27. Rg3 {[%emt 0:00:35]} Qh4 {[%emt 0:00:07]} 28. Bxg6 {[%emt 0:01:34]} Nc4 {[%emt 0:03:11]} 29. Ra7 {[%emt 0:01:34]} Re7 {[%emt 0:00:17]} 30. Qf3 {[%emt 0:01:52]} Ne5 {[%emt 0:00:50]} 31. Qf5 {[%emt 0:00:55]} Nxg6 {[%emt 0:01:18]} 32. Rxg6 {[%emt 0:01:03]} Qe4 {[%emt 0:02:02]} 33. Qxe4 {[%emt 0:00:25]} Nxe4 {[%emt 0:00:09]} 34. Rc6 {[%emt 0:00:30]} Rdd7 {[%emt 0:00:58]} 35. c4 {[%emt 0:01:38]} Rd1 {[%emt 0:01:44]} 36. Ra8+ {[%emt 0:00:52]} Kh7 {[%emt 0:00:02]} 37. Rf8 {[%emt 0:01:14]} b4 {[%emt 0:00:08]} 38. Kh2 {[%emt 0:02:25]} b3 {[%emt 0:00:09]} 39. Rb8 {[%emt 0:00:25]} Rxf1 {[%emt 0:00:22]} 40. Rxb3 {[%emt 0:00:03]} Rd7 {[%emt 0:00:19]} 41. Re6 {[%emt 0:00:24]} Nc5 {[%emt 0:00:04]} 0-1

[Event "AIIZIUCWT 2024"]
[Site "Rajkot"]
[Date "2024.01.23"]
[Round "1.5"]
[White "Krithigga K"]
[Black "Virle Kimaya"]
[Result "1-0"]
[ECO "A11"]
[WhiteElo "1966"]
[BlackElo "1289"]
[Annotator "NA RC"]
[PlyCount "115"]
[EventDate "2024.01.22"]
[EventType "team-tourn"]
[EventCountry "IND"]
[SourceTitle "playchess.com"]
[Source "ChessBase"]
[SourceQuality "1"]
[TimeControl "3600+30"]

1. c4 {[%emt 0:00:04]} c6 {[%emt 0:00:16]} 2. g3 {[%emt 0:00:11]} d5 {[%emt 0:00:14]} 3. Bg2 {[%emt 0:00:05]} Nf6 {[%emt 0:01:55]} 4. Nf3 {[%emt 0:01:09]} h6 {[%emt 0:01:29]} 5. Qc2 {[%emt 0:01:54]} e6 {[%emt 0:02:07]} 6. O-O {[%emt 0:03:59] A11: English Opening: 1...c6.} Bd6 {[%emt 0:00:35]} 7. d3 {[%emt 0:01:59]} O-O {[%emt 0:00:46]} 8. Nbd2 {[%emt 0:01:17]} e5 {[%emt 0:01:51]} 9. e4 {[%emt 0:04:44]} dxe4 {[%emt 0:09:29]} 10. dxe4 {[%emt 0:01:39]} Qe7 {[%emt 0:00:55]} 11. Rd1 {[%emt 0:08:33]} Bg4 {[%emt 0:02:54]} 12. Nf1 {[%emt 0:03:50]} Bc5 {[%emt 0:10:16]} 13. a3 {[%emt 0:04:12]} a5 {[%emt 0:02:15]} 14. b3 {[%emt 0:13:33]} Bd4 {[%emt 0:01:45]} 15. Rb1 {[%emt 0:04:11]} Na6 {[%emt 0:04:31]} 16. Re1 {[%emt 0:02:34]} Bxf3 {[%emt 0:07:06]} 17. Bxf3 {[%emt 0:00:30]} Rad8 {[%emt 0:00:30]} 18. Ne3 {[%emt 0:00:30]} g6 19. Qe2 {[%emt 0:04:02]} Kh7 {[%emt 0:01:00]} 20. Nc2 {[%emt 0:01:26]} Bc5 {[%emt 0:01:38]} 21. Bd2 {[%emt 0:01:11]} Bxa3 {[%emt 0:02:14]} 22. Bxa5 {[%emt 0:09:57]} Rb8 {[%emt 0:02:31]} 23. Nxa3 {[%emt 0:00:00]} Qxa3 {[%emt 0:00:44]} 24. Bc3 {[%emt 0:00:00]} Qe7 {[%emt 0:00:38]} 25. b4 {[%emt 0:00:00]} Nc7 {[%emt 0:00:34]} (25... Ra8 $14) 26. Qe3 {[%emt 0:00:00]} Rfd8 {[%emt 0:01:14]} 27. Ra1 {[%emt 0:00:00]} ({Better is} 27. Red1 $16) 27... Qe6 {[%emt 0:01:00]} ({Black should play} 27... Nd7 $1 $14) 28. Be2 {[%emt 0:00:00]} Nce8 {[%emt 0:02:14]} 29. Ra5 {[%emt 0:00:04]} Nd7 {[%emt 0:03:39]} 30. Bd2 {[%emt 0:00:32]} g5 {[%emt 0:00:51]} 31. Kg2 {[%emt 0:00:21]} Nd6 {[%emt 0:01:02] [#]} 32. Rc1 {[%emt 0:01:28]} ({Better is} 32. h4 $1) 32... Rh8 {[%emt 0:04:24]} (32... b5 $16 {keeps fighting.}) 33. h3 {[%emt 0:00:26]} Nf6 {[%emt 0:00:39]} (33... Qg6 $16 34. f3 b6) 34. f3 {[%emt 0:00:48]} Kg7 {[%emt 0:00:52]} (34... Rhg8 $16 {was called for.} 35. c5 Nb5) 35. Bc3 {[%emt 0:00:46]} ({Better is} 35. c5 $18 Nb5 36. Bc4 (36. Bxb5 cxb5 37. Rxb5 Ra8 $18)) 35... Nd7 {[%emt 0:00:20]} (35... b5 $16 {was called for.}) 36. f4 {[%emt 0:01:13]} ({Better is} 36. c5 $18 b6 37. cxb6) 36... f6 {[%emt 0:00:27]} (36... gxf4 $16 {was worth a try.} 37. gxf4 Kh7) 37. Bg4 {[%emt 0:00:54]} Qf7 $2 {[%emt 0:02:35]} (37... Qe7 38. Qd3 exf4) 38. Qd3 $2 {[%emt 0:00:18]} (38. fxe5 Nxe5 39. Rxe5 fxe5 40. Bxe5+ Kg8 41. Qd4) 38... Nxc4 {[%emt 0:00:33]} (38... Rhd8 $16) 39. Qxd7 {[%emt 0:00:39]} Qxd7 {[%emt 0:00:43]} 40. Bxd7 {[%emt 0:00:02]} Nxa5 {[%emt 0:00:25]} 41. bxa5 {[%emt 0:00:29]} Rhd8 {[%emt 0:00:11]} 42. Bf5 {[%emt 0:00:29]} exf4 {[%emt 0:01:23]} 43. gxf4 $18 {[%emt 0:00:18]} Ra8 {[%emt 0:00:30]} 44. fxg5 {[%emt 0:00:51]} hxg5 {[%emt 0:00:10]} 45. Rb1 {[%emt 0:00:41]} Ra7 {[%emt 0:00:12]} 46. Kf2 {[%emt 0:00:35]} Rd3 {[%emt 0:00:15]} 47. Rc1 {[%emt 0:00:11]} Rd8 {[%emt 0:00:52]} 48. Ke3 {[%emt 0:00:36]} Raa8 {[%emt 0:01:00]} 49. Rb1 {[%emt 0:00:07]} Rab8 {[%emt 0:00:31]} 50. Bd4 {[%emt 0:00:20]} Rd6 {[%emt 0:00:39]} 51. Bc5 {[%emt 0:01:05]} Rdd8 {[%emt 0:00:26]} 52. Ba7 {[%emt 0:00:09]} Ra8 {[%emt 0:00:18]} 53. Rxb7+ {[%emt 0:00:15]} Kh8 {[%emt 0:01:22]} 54. Bd4 {[%emt 0:00:46]} Rd6 {[%emt 0:00:00]} 55. Bb6 {[%emt 0:01:12]} Kg8 {[%emt 0:00:17]} 56. Bg4 {[%emt 0:00:13]} Ra6 {[%emt 0:00:34]} 57. Rb8+ {[%emt 0:00:17]} Kg7 {[%emt 0:00:12]} 58. Be2 {[%emt 0:00:04]} 1-0

[Event "AIIZIUCWT 2024"]
[Site "Rajkot"]
[Date "2024.01.23"]
[Round "1.6"]
[White "Kunnekar Vanshri"]
[Black "Sunyuktha C M N"]
[Result "0-1"]
[ECO "D58"]
[WhiteElo "1282"]
[BlackElo "2013"]
[Annotator "NA RC"]
[PlyCount "92"]
[EventDate "2024.01.22"]
[EventType "team-tourn"]
[EventCountry "IND"]
[SourceTitle "playchess.com"]
[Source "ChessBase"]
[SourceQuality "1"]
[TimeControl "3600+30"]

1. d4 {[%emt 0:00:03]} d5 {[%emt 0:00:16]} 2. c4 {[%emt 0:00:07]} e6 {[%emt 0:00:04]} 3. Nc3 {[%emt 0:00:13]} Nf6 {[%emt 0:00:07]} 4. Bg5 {[%emt 0:00:10]} Be7 {[%emt 0:01:16]} 5. e3 {[%emt 0:00:08]} O-O {[%emt 0:00:47]} 6. Nf3 {[%emt 0:00:11]} h6 {[%emt 0:00:05]} 7. Bh4 {[%emt 0:00:04]} b6 {[%emt 0:00:16]} 8. Rc1 {[%emt 0:01:50]} Bb7 {[%emt 0:00:41]} 9. Bd3 {[%emt 0:00:51]} Nbd7 {[%emt 0:00:28]} 10. O-O {[%emt 0:00:13]} a6 {[%emt 0:10:12] D58: Queen's Gambit Declined: Tartakower Defence.} 11. Re1 {[%emt 0:02:59]} dxc4 {[%emt 0:09:09]} 12. Bxc4 {[%emt 0:00:25]} c5 {[%emt 0:03:42]} 13. Bd3 {[%emt 0:06:58]} cxd4 {[%emt 0:15:59]} 14. exd4 {[%emt 0:01:44]} b5 {[%emt 0:01:09]} 15. Ne5 {[%emt 0:03:08]} Rc8 {[%emt 0:01:34]} 16. Bb1 {[%emt 0:04:31]} Re8 {[%emt 0:04:21]} 17. a3 {[%emt 0:03:35]} Nf8 {[%emt 0:01:25]} 18. Qd3 {[%emt 0:04:28]} Nd5 {[%emt 0:01:53]} 19. Bxe7 {[%emt 0:04:43]} Qxe7 {[%emt 0:06:36]} 20. Ne4 Rxc1 {[%emt 0:08:16]} 21. Rxc1 {[%emt 0:07:09]} f5 {[%emt 0:00:01]} 22. Nc5 {[%emt 0:07:15]} Nf4 {[%emt 0:01:17]} 23. Qe3 {[%emt 0:02:14] [#]} Qg5 $1 {[%emt 0:00:10]} 24. g3 {[%emt 0:02:06] [#]} Ne2+ $1 {[%emt 0:00:24]} 25. Kf1 {[%emt 0:01:49]} Nxc1 {[%emt 0:01:33]} 26. Qxg5 {[%emt 0:02:11]} hxg5 {[%emt 0:00:04]} 27. Nxb7 {[%emt 0:00:07]} Nb3 {[%emt 0:00:20]} 28. Nc5 {[%emt 0:02:35]} Nd2+ {[%emt 0:00:09]} 29. Ke2 {[%emt 0:00:48]} Nxb1 {[%emt 0:00:04]} 30. Kd3 {[%emt 0:00:51]} Rd8 {[%emt 0:01:06]} 31. Nb3 {[%emt 0:01:56]} Nd7 {[%emt 0:01:39]} 32. Nc6 {[%emt 0:00:47]} Re8 {[%emt 0:00:12]} 33. Nb4 {[%emt 0:00:42]} e5 {[%emt 0:01:10]} 34. Kc2 {[%emt 0:02:07] [#]} exd4 $1 {[%emt 0:00:32]} 35. Kxb1 {[%emt 0:01:18]} Re1+ {[%emt 0:00:13]} 36. Ka2 {[%emt 0:03:53]} Rd1 {[%emt 0:00:09]} 37. Nc6 {[%emt 0:01:28]} d3 {[%emt 0:00:20]} 38. Ne7+ {[%emt 0:00:44]} Kh7 {[%emt 0:00:51]} 39. Nxf5 {[%emt 0:00:11]} Rf1 {[%emt 0:00:14]} 40. Ne3 {[%emt 0:03:26]} Rxf2 {[%emt 0:00:05]} 41. h4 {[%emt 0:00:09]} Rf3 {[%emt 0:00:16]} 42. Nd1 {[%emt 0:00:41]} Rxg3 {[%emt 0:00:04]} 43. hxg5 {[%emt 0:00:35]} Rxg5 {[%emt 0:00:09]} 44. Nf2 {[%emt 0:00:23]} Ne5 $19 {[%emt 0:00:11]} 45. Ne4 {[%emt 0:00:21]} Rg2 {[%emt 0:00:02]} 46. Kb1 {[%emt 0:00:37]} Nc4 {[%emt 0:00:01]} 0-1

[Event "AIIZIUCWT 2024"]
[Site "Rajkot"]
[Date "2024.01.23"]
[Round "1.7"]
[White "Swapna C N"]
[Black "Rane Parnavi"]
[Result "0-1"]
[ECO "A48"]
[WhiteElo "1718"]
[BlackElo "1289"]
[Annotator "NA RC COMBH"]
[PlyCount "58"]
[EventDate "2024.01.22"]
[EventType "team-tourn"]
[EventCountry "IND"]
[SourceTitle "playchess.com"]
[Source "ChessBase"]
[SourceQuality "1"]
[TimeControl "3600+30"]

1. d4 {[%emt 0:00:08]} Nf6 {[%emt 0:00:17]} 2. Nf3 {[%emt 0:00:05]} g6 {[%emt 0:00:21]} 3. Bg5 {[%emt 0:00:26]} Bg7 {[%emt 0:00:15]} 4. Nbd2 {[%emt 0:00:06]} O-O {[%emt 0:00:17]} 5. c3 {[%emt 0:00:06]} d6 {[%emt 0:01:16]} 6. e4 {[%emt 0:00:37]} c5 {[%emt 0:00:08]} 7. dxc5 {[%emt 0:01:53]} dxc5 {[%emt 0:00:28]} 8. Be2 {[%emt 0:01:41]} Qc7 {[%emt 0:02:38]} 9. O-O {[%emt 0:00:47]} h6 {[%emt 0:00:45]} 10. Bh4 {[%emt 0:01:35]} Nc6 {[%emt 0:02:35]} 11. Qc2 {[%emt 0:07:22]} Be6 {[%emt 0:05:25]} 12. h3 {[%emt 0:07:23]} Nh5 {[%emt 0:03:29]} 13. Ne1 {[%emt 0:08:17]} Nf4 {[%emt 0:05:10]} 14. Nc4 {[%emt 0:05:07]} b5 {[%emt 0:12:43]} 15. Ne3 {[%emt 0:05:33]} b4 {[%emt 0:07:34]} 16. Bb5 {[%emt 0:06:40]} bxc3 {[%emt 0:03:16]} 17. bxc3 {[%emt 0:01:29]} a6 {[%emt 0:07:08]} 18. Bxc6 {[%emt 0:00:30]} Qxc6 {[%emt 0:00:30]} 19. Bxe7 {[%emt 0:00:30]} Rfe8 20. Bh4 {[%emt 0:03:51]} Bxc3 {[%emt 0:00:37]} 21. Rc1 {[%emt 0:06:23]} Rab8 {[%emt 0:02:56]} 22. Kh1 {[%emt 0:05:14]} Bd4 {[%emt 0:02:19]} 23. Nf3 {[%emt 0:02:44]} Qd7 {[%emt 0:02:51]} 24. Rb1 {[%emt 0:03:26]} Bxh3 {[%emt 0:02:00]} 25. Bg3 {[%emt 0:00:33]} Bxe3 {[%emt 0:00:27]} 26. fxe3 {[%emt 0:00:11]} Bxg2+ {[%emt 0:00:24]} 27. Kg1 {[%emt 0:00:26]} Bxf1 {[%emt 0:00:22]} 28. Rxf1 {[%emt 0:00:43]} Qg4 {[%emt 0:01:21]} 29. Kf2 {[%emt 0:00:38]} Rb2 {[%emt 0:00:27]} 0-1

[Event "AIIZIUCWT 2024"]
[Site "Rajkot"]
[Date "2024.01.23"]
[Round "1.8"]
[White "David Avril R"]
[Black "Poorna Sri M.K"]
[Result "0-1"]
[ECO "E97"]
[WhiteElo "1348"]
[BlackElo "1812"]
[Annotator "NA RC COMBH"]
[PlyCount "62"]
[EventDate "2024.01.22"]
[EventType "team-tourn"]
[EventCountry "IND"]
[SourceTitle "playchess.com"]
[Source "ChessBase"]
[SourceQuality "1"]
[TimeControl "3600+30"]

1. d4 {[%emt 0:00:37]} Nf6 {[%emt 0:00:51]} 2. c4 {[%emt 0:00:45]} g6 {[%emt 0:00:37]} 3. Nc3 {[%emt 0:00:46]} Bg7 {[%emt 0:00:39]} 4. e4 {[%emt 0:00:37]} d6 {[%emt 0:00:36]} 5. Nf3 {[%emt 0:00:40]} O-O {[%emt 0:00:47]} 6. Be2 {[%emt 0:00:41]} e5 {[%emt 0:00:36]} 7. O-O {[%emt 0:00:34]} Nc6 {[%emt 0:00:42]} 8. d5 {[%emt 0:01:01]} Ne7 {[%emt 0:00:40]} 9. b4 {[%emt 0:00:45]} Ne8 {[%emt 0:01:06]} 10. c5 {[%emt 0:02:01]} f5 {[%emt 0:00:54]} 11. Nd2 {[%emt 0:03:00]} f4 {[%emt 0:01:44]} 12. f3 {[%emt 0:00:58]} g5 {[%emt 0:01:08]} 13. Nc4 {[%emt 0:03:52]} h5 {[%emt 0:01:46]} 14. a4 {[%emt 0:05:48]} Rf6 {[%emt 0:05:38]} 15. Ba3 {[%emt 0:02:08]} Rg6 {[%emt 0:01:35]} 16. b5 {[%emt 0:06:39]} g4 {[%emt 0:03:26]} 17. b6 {[%emt 0:11:28]} axb6 {[%emt 0:03:30]} 18. cxb6 {[%emt 0:01:04]} g3 {[%emt 0:03:08]} 19. h3 {[%emt 0:07:24]} c5 {[%emt 0:08:00]} 20. dxc6 {[%emt 0:01:54]} Nxc6 {[%emt 0:01:01]} 21. Nb5 {[%emt 0:02:55]} Qh4 {[%emt 0:02:07]} 22. Ncxd6 {[%emt 0:06:36]} Nxd6 {[%emt 0:04:19]} 23. Bxd6 {[%emt 0:02:11]} Bxh3 {[%emt 0:01:17]} 24. Bc4+ {[%emt 0:00:45]} Kh8 {[%emt 0:04:20]} 25. Qc2 {[%emt 0:05:56]} Be6 {[%emt 0:02:12]} 26. Rfc1 {[%emt 0:00:33]} Qh2+ {[%emt 0:00:00]} 27. Kf1 {[%emt 0:00:30]} Qh1+ {[%emt 0:00:00]} 28. Ke2 {[%emt 0:00:30]} Qxg2+ {[%emt 0:00:00]} 29. Kd1 {[%emt 0:00:00]} Qg1+ {[%emt 0:00:00]} 30. Kd2 {[%emt 0:00:00]} Qe3+ {[%emt 0:00:00]} 31. Kd1 {[%emt 0:00:00]} g2 {[%emt 0:00:00]} 0-1